bitfinex/quotes_ETHUSD_20250131
["timestamp","ask_amount","ask_price","bid_price","bid_amount"]
[1738328640395,8.8049177,3353.9,3353.8,7.39465382]
[1738328640583,0.55,3355.1,3353.8,7.39465382]
[1738328640584,8.8049177,3354.1,3353.8,7.39465382]
[1738328641190,9.0079177,3354.1,3353.8,7.39465382]
[1738328641400,9.7597177,3354.1,3353.8,7.39465382]
[1738328641764,9.0079177,3354.1,3353.8,7.39465382]
[1738328642201,9.90870947,3354.1,3353.8,7.39465382]
[1738328642798,9.70570947,3354.1,3353.8,7.39465382]
[1738328642987,0.203,3354.0,3353.8,7.39465382]
[1738328644065,9.0079177,3354.1,3353.8,7.39465382]
[1738328644272,8.8049177,3354.0,3353.9,0.7735]
[1738328644467,8.8049177,3354.0,3353.9,1.59031538]
[1738328645403,8.8049177,3355.0,3354.1,0.7741]
[1738328645602,8.8049177,3354.9,3354.1,0.7741]
[1738328646510,9.0079177,3354.9,3354.1,0.7741]
[1738328647373,8.8049177,3354.9,3354.1,0.7741]
[1738328647603,8.8049177,3354.9,3354.3,0.8213]
[1738328647907,8.8049177,3354.9,3354.4,0.0075]
[1738328648081,8.8049177,3354.9,3354.5,0.8213]
[1738328648284,8.8049177,3354.9,3354.6,0.0075]
[1738328648609,8.8049177,3355.2,3354.6,0.0075]
[1738328649312,8.8049177,3355.2,3354.7,0.797]
[1738328649805,0.203,3355.7,3354.8,0.0075]
[1738328650132,8.8049177,3355.6,3354.8,0.0075]
[1738328650825,8.8049177,3355.6,3355.0,0.0075]
[1738328654512,8.8049177,3355.5,3355.0,0.0075]
[1738328655419,8.8049177,3355.5,3355.1,0.7636]
[1738328656642,8.8049177,3356.1,3355.2,3.26400367]
[1738328656778,8.8049177,3356.1,3355.7,0.7636]
[1738328656978,8.8049177,3356.0,3355.7,0.7636]
[1738328657213,8.8049177,3356.6,3355.7,0.7636]
[1738328657393,8.8049177,3356.6,3355.7,1.41359011]
[1738328659319,8.8049177,3356.6,3355.8,0.0075]
[1738328659686,8.8049177,3356.6,3355.8,0.5575]
[1738328659884,8.8049177,3356.6,3355.9,0.8081]
[1738328660503,8.8049177,3356.5,3355.9,0.8081]
[1738328664209,0.7543,3356.4,3355.5,0.7976]
[1738328664408,0.95592177,3356.3,3355.5,0.7976]
[1738328666349,8.8049177,3356.2,3355.5,0.7976]
[1738328669360,8.8049177,3356.2,3355.7,0.8048]
[1738328669889,9.5586177,3356.1,3355.2,0.8048]
[1738328670025,0.95586177,3356.0,3355.0,0.8048]
[1738328670231,9.39910283,3355.9,3355.0,0.8048]
[1738328673797,9.39910283,3355.9,3355.1,0.5575]
[1738328674099,8.8049177,3355.8,3355.5,0.0075]
[1738328676892,8.8049177,3355.8,3355.4,0.7684]
[1738328678299,8.8049177,3355.7,3355.4,0.7684]
[1738328679085,8.8049177,3355.7,3355.2,2.70650367]
[1738328679295,9.68540947,3355.7,3355.1,0.7936]
[1738328680159,9.68540947,3355.7,3354.9,3.46870367]
[1738328681467,8.8049177,3355.7,3354.9,3.46870367]
[1738328682501,8.8049177,3355.7,3355.0,0.03730446]
[1738328682696,8.8049177,3355.7,3355.3,0.7617]
[1738328683519,8.8049177,3355.7,3355.4,0.0075]
[1738328684203,8.8049177,3355.6,3355.4,0.0075]
[1738328684536,8.8049177,3355.6,3355.4,0.41007037]
[1738328686710,8.8049177,3355.6,3355.5,2.70650367]
[1738328687094,8.8049177,3355.6,3355.5,3.26400367]
[1738328690205,8.8049177,3356.3,3355.6,0.0075]
[1738328692745,8.8049177,3356.3,3355.6,0.5575]
[1738328693847,1.51624177,3356.2,3355.5,2.70650367]
[1738328694060,1.51624177,3356.2,3355.0,0.7899]
[1738328694061,0.7839,3356.0,3355.0,0.7899]
[1738328694218,0.7839,3355.8,3354.7,0.7899]
[1738328694619,9.5888177,3355.7,3354.7,0.7899]
[1738328694861,0.95888177,3355.6,3354.7,0.7899]
[1738328695829,0.58228345,3355.4,3354.7,0.7899]
[1738328696615,0.7602,3355.3,3354.6,2.70650367]
[1738328696832,8.8049177,3355.2,3354.6,2.70650367]
[1738328697721,8.8049177,3355.1,3354.6,2.70650367]
[1738328699932,8.8049177,3355.1,3354.7,0.0075]
[1738328701267,8.8049177,3355.1,3354.4,1.3558]
[1738328701420,0.7778,3355.0,3354.3,2.70650367]
[1738328702170,8.8049177,3354.9,3354.0,2.70650367]
[1738328702461,0.8318,3354.7,3354.0,2.70650367]
[1738328703757,9.5958177,3354.6,3353.8,7.39465382]
[1738328703942,0.7909,3354.4,3353.8,7.39465382]
[1738328707122,0.7909,3354.4,3354.0,2.70650367]
[1738328707323,8.8049177,3354.5,3354.1,0.79031425]
[1738328707518,8.8049177,3354.5,3354.3,2.70650367]
[1738328708066,0.60105654,3355.3,3354.4,0.5575]
[1738328708270,8.85,3355.2,3354.6,3.26400367]
[1738328708424,8.85,3355.2,3354.9,2.70650367]
[1738328708620,8.85,3355.6,3355.0,0.0075]
[1738328708982,8.85,3355.6,3355.3,0.0075]
[1738328709181,0.203,3356.2,3355.2,2.70650367]
[1738328709182,8.85,3355.9,3355.5,2.70650367]
[1738328709524,8.85,3355.9,3355.6,0.0075]
[1738328711160,8.85,3356.4,3355.6,0.58729824]
[1738328711384,8.85,3356.4,3355.6,0.5575]
[1738328712563,8.85,3356.4,3355.2,3.5575]
[1738328712878,8.85,3356.4,3355.5,0.0075]
[1738328713684,8.85,3356.4,3355.7,0.0075]
[1738328714370,8.85,3356.4,3355.7,0.03729728]
[1738328714538,8.85,3356.4,3355.8,0.773]
[1738328716636,0.8163,3356.2,3355.4,0.02979658]
[1738328716836,2.70650367,3355.8,3355.1,0.8089]
[1738328717162,8.85,3356.1,3355.1,0.8089]
[1738328717362,8.85,3356.1,3355.2,0.02980076]
[1738328717662,8.85,3356.1,3355.3,0.0075]
[1738328717868,8.85,3356.1,3355.3,2.71400367]
[1738328718069,8.85,3356.1,3355.7,0.0075]
[1738328718223,8.85,3356.5,3355.7,0.0075]
[1738328718853,8.85,3356.5,3355.5,0.0075]
[1738328719584,8.85,3356.5,3355.4,0.7618]
[1738328720250,0.202,3356.4,3355.4,0.7618]
[1738328720445,0.98697,3356.3,3355.4,0.7618]
[1738328721084,0.98697,3356.3,3355.1,0.0075]
[1738328721585,0.98697,3356.3,3355.0,0.6802]
[1738328721788,8.85,3356.2,3355.0,0.6802]
[1738328721949,8.85,3356.2,3355.1,0.02979983]
[1738328722148,1.003897,3356.1,3355.1,0.02979983]
[1738328723393,1.003897,3356.1,3355.1,0.57979983]
[1738328723696,8.85,3356.2,3355.2,0.0075]
[1738328723902,8.85,3356.2,3355.4,0.0075]
[1738328724190,8.85,3356.2,3355.4,0.58729594]
[1738328724346,8.85,3356.2,3355.5,0.7511]
[1738328725246,8.85,3356.2,3355.6,0.02979596]
[1738328725646,8.85,3356.2,3355.6,0.57979596]
[1738328725988,0.75,3356.6,3355.5,0.7511]
[1738328726369,0.75,3356.6,3355.6,0.03729891]
[1738328726562,0.75,3356.6,3355.6,0.0075]
[1738328727491,1.01909744,3356.5,3355.6,0.0075]
[1738328727991,0.75,3356.6,3355.6,0.58729565]
[1738328729190,0.75,3356.6,3355.6,0.5575]
[1738328730386,8.85,3356.5,3355.8,0.0075]
[1738328730565,8.85,3356.4,3355.8,0.0075]
[1738328731667,8.85,3356.4,3356.0,0.0075]
[1738328731849,8.85,3356.4,3356.1,0.55]
[1738328732202,8.85,3356.4,3356.0,0.43602952]
[1738328732397,8.85,3356.4,3356.1,0.15956212]
[1738328732556,8.85,3356.4,3356.1,0.12976877]
[1738328732758,8.85,3356.4,3355.9,0.83159335]
[1738328732958,8.85,3356.4,3356.0,0.12976877]
[1738328733159,8.85,3356.4,3356.1,0.02979336]
[1738328733374,8.85,3356.4,3355.9,0.83159336]
[1738328733570,8.85,3356.4,3356.0,0.13726877]
[1738328733856,8.85,3356.4,3356.1,0.02979309]
[1738328734198,8.85,3356.4,3356.2,0.12908166]
[1738328734570,8.85,3356.9,3356.0,0.57979265]
[1738328734753,8.85,3356.9,3356.1,0.12908166]
[1738328734958,8.85,3356.9,3356.2,0.02979144]
[1738328735283,9.72976202,3356.9,3356.2,0.02979144]
[1738328735469,9.72976202,3356.9,3356.3,0.12908166]
[1738328735787,9.72976202,3356.9,3355.9,0.8018]
[1738328736098,0.8128,3356.8,3356.0,0.12424698]
[1738328736878,0.8128,3356.8,3355.9,0.8018]
[1738328737087,1.3838318,3356.7,3355.5,0.7556]
[1738328737284,1.3838318,3356.7,3356.0,0.12418095]
[1738328737592,1.3838318,3356.7,3356.1,0.12418095]
[1738328737784,8.85,3356.6,3355.5,0.7556]
[1738328737971,8.85,3356.6,3355.6,0.12418095]
[1738328738172,1.10466318,3356.5,3355.6,0.12418095]
[1738328738372,1.10466318,3356.5,3355.6,0.15397825]
[1738328739304,8.85,3356.6,3355.7,3.0075]
[1738328739599,8.85,3356.6,3355.8,0.94579866]
[1738328739795,8.85,3356.6,3356.0,3.0]
[1738328739955,8.85,3356.6,3356.1,0.02979285]
[1738328740155,8.85,3356.6,3356.2,0.91730422]
[1738328740355,8.85,3356.9,3356.4,0.7855]
[1738328740573,8.85,3356.9,3356.5,0.02978933]
[1738328740782,8.85,3357.2,3356.4,0.7855]
[1738328741103,0.7986,3357.1,3356.4,0.7855]
[1738328741275,0.7986,3357.1,3356.5,0.12422937]
[1738328741470,0.99486,3357.0,3356.5,0.12422937]
[1738328741673,0.99486,3357.0,3356.1,0.8075]
[1738328741899,0.99486,3357.0,3356.6,0.12422937]
[1738328742100,0.99486,3357.0,3356.1,0.8075]
[1738328742596,0.99486,3357.0,3356.2,0.12422937]
[1738328742764,1.064346,3356.9,3356.2,0.12422937]
[1738328743598,8.85,3356.8,3356.2,0.12422937]
[1738328743897,8.85,3356.8,3355.8,0.7617]
[1738328744192,0.7911,3356.7,3355.9,0.12421177]
[1738328744797,1.39859125,3356.7,3355.9,0.12421177]
[1738328745002,1.13129373,3356.6,3355.9,0.12421177]
[1738328745763,1.39859125,3356.7,3355.9,0.12421177]
[1738328745963,0.60749125,3356.7,3355.9,0.154009]
[1738328746162,8.85,3356.8,3355.9,0.154006]
[1738328746391,8.85,3356.8,3355.9,0.12421177]
[1738328747402,0.833,3356.7,3355.9,0.12421177]
[1738328747609,1.3356656,3356.6,3355.5,0.8275]
[1738328747805,10.1856656,3356.6,3355.6,0.12440107]
[1738328748106,8.85,3356.5,3355.6,0.12440107]
[1738328748404,0.8074,3356.4,3355.6,0.12440107]
[1738328748771,0.8074,3356.4,3355.3,0.8198]
[1738328749008,1.09930656,3356.3,3355.4,0.12448473]
[1738328750019,0.60427553,3356.1,3355.4,0.12448473]
[1738328754396,8.85,3356.2,3355.5,0.84330031]
[1738328754602,8.85,3356.2,3355.6,0.12039856]
[1738328754805,8.85,3356.2,3355.7,0.8135]
[1738328754984,8.85,3356.2,3355.8,0.1204426]
[1738328755189,8.85,3356.6,3355.7,0.84329588]
[1738328755419,8.85,3356.6,3355.8,0.9082426]
[1738328756903,8.85,3356.5,3355.8,0.1204426]
[1738328757112,3.52050367,3356.4,3354.9,0.7925]
[1738328757408,0.8065,3356.2,3355.0,0.12027086]
[1738328757607,1.77205037,3356.1,3354.9,0.7925]
[1738328757904,0.202,3356.0,3355.0,0.11615381]
[1738328758396,0.202,3356.0,3355.2,0.7913]
[1738328758590,0.202,3356.0,3355.3,0.11185843]
[1738328758995,0.60659895,3355.9,3355.3,0.11185843]
[1738328759441,0.86466388,3355.9,3355.3,0.11185843]
[1738328761509,8.85,3355.8,3355.3,0.11185843]
[1738328761707,8.85,3355.8,3355.2,0.7913]
[1738328761906,8.85,3355.8,3355.4,0.1119333]
[1738328762116,9.6041,3355.8,3354.5,0.8106]
[1738328762297,0.99166639,3355.7,3355.5,0.11168152]
[1738328762652,0.99166639,3355.7,3354.5,0.8106]
[1738328762653,8.85,3355.6,3354.5,0.84040733]
[1738328762814,8.85,3355.6,3354.9,0.7913]
[1738328763012,8.85,3355.6,3355.1,0.7913]
[1738328764732,8.85,3355.6,3355.3,0.7913]
[1738328764945,8.85,3356.0,3355.5,0.7913]
[1738328765103,8.85,3356.0,3355.7,0.7913]
[1738328765500,8.85,3356.0,3355.1,0.7822]
[1738328765801,9.735,3356.0,3355.1,0.81200091]
[1738328766003,8.85,3356.0,3355.3,2.70650367]
[1738328766198,8.85,3356.0,3355.4,0.7822]
[1738328767253,8.85,3356.0,3355.5,0.02979962]
[1738328767440,8.85,3356.0,3355.6,0.7822]
[1738328767767,8.85,3356.0,3355.7,0.02979823]
[1738328767944,8.85,3356.0,3355.7,0.41099805]
[1738328768496,8.85,3355.9,3354.9,0.8166]
[1738328768799,2.70650367,3356.4,3355.8,0.09629024]
[1738328768800,0.202,3356.4,3355.8,0.09629024]
[1738328768978,8.85,3356.3,3355.7,0.8166]
[1738328769584,8.85,3356.3,3355.8,0.12251449]
[1738328769997,8.85,3356.3,3355.8,0.09271882]
[1738328770304,8.85,3357.1,3356.1,1.3313]
[1738328770595,0.3,3357.3,3355.9,0.09271882]
[1738328770596,0.7882,3356.9,3355.9,0.09271882]
[1738328770753,3.49470367,3356.9,3356.0,0.7738]
[1738328770956,1.29274722,3356.8,3356.0,0.7738]
[1738328771287,1.29274722,3356.8,3356.1,0.09271882]
[1738328771991,1.49474722,3356.8,3356.1,0.09271882]
[1738328772288,1.49474722,3356.8,3356.0,0.7738]
[1738328772491,1.29274722,3356.8,3356.2,0.09271882]
[1738328772790,1.15137158,3356.7,3356.0,0.7738]
[1738328773158,1.15137158,3356.7,3356.1,0.09271882]
[1738328773555,1.15137158,3356.7,3356.0,0.7738]
[1738328773957,1.15137158,3356.7,3356.1,0.09271882]
[1738328774372,1.15137158,3356.7,3356.0,0.7738]
[1738328774771,1.15137158,3356.7,3356.1,0.09271882]
[1738328775086,1.15137158,3356.7,3356.0,0.7738]
[1738328775281,9.63476857,3357.0,3356.2,0.09271882]
[1738328775469,9.63476857,3357.0,3356.0,0.7738]
[1738328775639,9.63476857,3357.0,3356.3,0.09271882]
[1738328775842,9.63476857,3357.0,3356.0,0.7738]
[1738328776044,9.63476857,3357.0,3356.4,0.09271882]
[1738328776273,10.19272174,3356.9,3356.4,0.09271882]
[1738328776444,10.19272174,3356.9,3356.0,0.7738]
[1738328776786,10.19272174,3356.9,3356.5,0.09271882]
[1738328776987,10.19272174,3356.9,3356.0,0.7738]
[1738328777284,10.19272174,3356.9,3356.1,0.09271882]
[1738328777444,0.9442772,3356.8,3356.2,0.7696]
[1738328777638,0.9442772,3356.8,3356.2,0.86225292]
[1738328778445,0.9442772,3356.8,3356.2,0.7696]
[1738328778875,0.9442772,3356.8,3355.9,0.7985]
[1738328779191,10.19272174,3356.9,3355.9,0.7985]
[1738328779192,0.7866,3356.6,3356.3,0.09258703]
[1738328779485,0.7866,3356.6,3355.9,0.7985]
[1738328779699,0.7866,3356.6,3356.4,0.09258703]
[1738328779895,0.7866,3356.6,3355.9,0.7985]
[1738328780102,0.7866,3356.6,3356.5,0.09258703]
[1738328780296,2.00374985,3356.6,3355.9,0.7985]
[1738328780496,2.00374985,3356.6,3356.5,0.09258703]
[1738328780703,1.21714985,3356.6,3355.9,0.7985]
[1738328781007,1.21714985,3356.6,3356.5,0.09258703]
[1738328781304,1.21714985,3356.6,3355.9,0.7985]
[1738328781491,1.21714985,3356.6,3356.5,0.09258703]
[1738328781660,1.21714985,3356.6,3355.9,0.7985]
[1738328781861,1.21714985,3356.6,3356.5,0.09258703]
[1738328782059,1.21714985,3356.6,3355.9,0.7985]
[1738328782306,8.85,3356.5,3355.9,0.7985]
[1738328783886,8.85,3356.5,3356.0,0.09257385]
[1738328785104,8.85,3356.4,3356.0,0.09257385]
[1738328785303,0.7995,3356.3,3355.4,0.8092]
[1738328785465,0.9657,3356.2,3356.1,0.09252993]
[1738328785781,9.8157,3356.2,3355.4,0.8092]
[1738328785979,8.85,3356.1,3355.4,0.8092]
[1738328786173,8.85,3356.1,3355.5,0.09252993]
[1738328791215,0.7728,3356.0,3355.5,0.09252993]
[1738328791374,1.11855051,3355.9,3355.5,0.09252993]
[1738328791709,1.11855051,3355.9,3354.5,0.7739]
[1738328791710,0.0075,3355.7,3354.5,0.7739]
[1738328791920,9.6716,3355.6,3354.5,0.7739]
[1738328792085,9.8736,3355.6,3354.5,0.7739]
[1738328793491,0.8216,3355.5,3354.5,0.7739]
[1738328793818,0.98736,3355.4,3354.5,0.7739]
[1738328793972,9.052,3355.6,3354.5,0.80370888]
[1738328794178,8.85,3355.6,3354.9,0.7842]
[1738328794377,8.85,3355.6,3355.0,0.02980265]
[1738328795027,8.85,3355.8,3355.1,3.7842]
[1738328795313,0.8216,3356.9,3354.5,3.0]
[1738328795314,8.85,3355.6,3355.5,0.7842]
[1738328797597,8.85,3355.6,3355.2,0.7621]
[1738328797976,8.85,3355.6,3354.5,0.79190504]
[1738328798374,8.85,3355.6,3354.6,0.09282425]
[1738328798535,8.85,3355.6,3354.7,0.02980532]
[1738328798733,8.85,3355.6,3354.7,0.12264714]
[1738328798933,9.81828,3355.6,3354.7,0.09284182]
[1738328799853,8.85,3355.6,3354.8,0.7955]
[1738328800145,8.85,3355.6,3354.8,0.82530461]
[1738328800307,8.85,3355.6,3354.9,0.09284182]
[1738328807606,0.8279,3355.5,3354.2,0.7583]
[1738328807807,1.02706313,3355.4,3354.3,0.09321971]
[1738328808929,8.85,3355.3,3354.3,0.09321971]
[1738328810023,0.7502,3355.2,3354.3,0.09321971]
[1738328810732,0.7641,3355.0,3354.3,0.09321971]
[1738328810939,0.7641,3355.0,3353.8,10.10115749]
[1738328810940,0.7641,3354.8,3353.8,7.39465382]
[1738328811250,8.85,3354.7,3354.4,0.09321971]
[1738328811420,8.85,3354.7,3353.9,0.02981458]
[1738328811620,8.85,3354.7,3354.5,0.09321971]
[1738328811821,8.85,3354.7,3353.8,7.39465382]
[1738328812136,9.907551,3354.7,3353.8,7.39465382]
[1738328812333,0.7984,3354.6,3353.9,0.09321971]
[1738328812505,1.40663644,3354.6,3353.9,0.09321971]
[1738328812709,9.6484,3354.5,3353.9,0.09321971]
[1738328813108,8.85,3354.4,3353.9,0.09321971]
[1738328813311,1.82406364,3354.3,3353.9,0.09321971]
[1738328815328,0.0075,3354.1,3353.9,0.09321971]
[1738328815647,0.0075,3354.1,3353.8,7.39465382]
[1738328815648,0.7601,3354.0,3353.8,7.39465382]
[1738328815860,8.85,3353.9,3353.8,7.39465382]
[1738328818514,9.45077027,3353.9,3353.8,7.39465382]
[1738328818757,10.4726073,3353.9,3353.8,7.39465382]
[1738328820050,10.4801073,3353.9,3353.8,7.39465382]
[1738328820226,11.5118073,3353.9,3353.8,7.39465382]
[1738328820761,11.5193073,3353.9,3353.8,7.39465382]
[1738328822139,11.5043073,3353.9,3353.8,7.39465382]
[1738328822543,11.3023073,3353.9,3353.8,7.39465382]
[1738328823575,10.4726073,3353.9,3353.8,7.39465382]
[1738328823778,8.85,3353.9,3353.8,7.39465382]
[1738328824083,8.85,3353.9,3353.8,7.48962801]
[1738328824550,9.684,3353.9,3353.8,7.48962801]
[1738328824987,9.6765,3353.9,3353.8,7.48962801]
[1738328825285,10.70316498,3353.9,3353.8,7.48962801]
[1738328825585,8.85,3353.9,3353.8,7.48962801]
[1738328825972,8.85,3354.1,3353.8,7.48962801]
[1738328827282,8.85,3354.1,3353.9,0.8005]
[1738328827644,8.85,3354.1,3354.0,0.09482022]
[1738328827848,8.85,3354.2,3354.0,0.09482022]
[1738328828041,8.85,3354.2,3354.0,1.19446799]
[1738328828351,8.85,3354.3,3354.2,3.824]
[1738328828580,8.85,3354.3,3354.2,4.374]
[1738328828786,0.01401,3571.3,3354.2,4.374]
[1738328828787,8.85,3355.6,3354.3,1.3808]
[1738328829122,8.85,3355.8,3355.1,0.8308]
[1738328829683,8.85,3355.8,3355.2,0.09439367]
[1738328831593,0.7953,3355.7,3355.2,0.09439367]
[1738328831781,0.7953,3355.7,3354.8,0.8097]
[1738328832710,14.2,3355.6,3354.8,0.8097]
[1738328832881,10.34953,3355.5,3354.9,0.09439367]
[1738328833088,14.2,3355.4,3354.4,0.7993]
[1738328833288,0.7931,3355.1,3353.9,0.7993]
[1738328833487,14.2,3355.0,3354.5,0.09439367]
[1738328833692,14.2,3355.0,3353.9,0.7993]
[1738328833893,0.776,3354.8,3354.6,0.09439367]
[1738328834089,0.776,3354.8,3353.8,7.39465382]
[1738328834517,0.776,3354.8,3353.9,0.09376035]
[1738328834991,0.59149501,3354.7,3353.9,0.09376035]
[1738328835196,8.85,3354.6,3353.9,0.09376035]
[1738328835918,10.19253572,3354.6,3353.9,0.09376035]
[1738328836955,15.222,3354.5,3353.9,0.09376035]
[1738328837813,0.0075,3354.4,3353.9,0.09376035]
[1738328838153,0.0075,3354.4,3353.8,7.39465382]
[1738328838816,14.2,3354.3,3353.8,7.39465382]
[1738328839021,1.79360037,3354.2,3353.8,7.39465382]
[1738328840165,14.2,3354.3,3353.8,7.39465382]
[1738328840661,14.2,3354.3,3353.9,0.09041176]
[1738328840958,14.2,3354.3,3353.8,7.39465382]
[1738328842057,0.0075,3354.2,3353.8,7.39465382]
[1738328842213,0.0075,3354.0,3353.8,7.39465382]
[1738328842415,15.44573037,3353.9,3353.8,7.39465382]
[1738328846894,15.45323037,3353.9,3353.8,7.39465382]
[1738328847422,16.0368558,3353.9,3353.8,7.39465382]
[1738328847928,19.49775947,3353.9,3353.8,7.39465382]
[1738328854130,16.9782558,3353.9,3353.8,7.39465382]
[1738328854517,16.9857558,3353.9,3353.8,7.39465382]
[1738328856733,16.9932558,3353.9,3353.8,7.39465382]
[1738328857102,16.7837558,3353.9,3353.8,7.39465382]
[1738328857418,16.2313558,3353.9,3353.8,7.39465382]
[1738328857595,16.2388558,3353.9,3353.8,7.39465382]
[1738328857930,19.76805947,3353.9,3353.8,7.39465382]
[1738328858797,17.0615558,3353.9,3353.8,7.39465382]
[1738328860595,19.76805947,3353.9,3353.8,7.39465382]
[1738328860831,17.0615558,3353.9,3353.8,7.39465382]
[1738328861234,16.2313558,3353.9,3353.8,7.39465382]
[1738328864409,14.99312543,3353.9,3353.8,7.39465382]
[1738328864596,14.78362543,3353.9,3353.8,7.39465382]
[1738328864797,14.78362543,3353.9,3353.8,8.18605382]
[1738328865102,14.78362543,3353.9,3353.8,8.27795224]
[1738328866538,17.4976291,3353.9,3353.8,7.48655224]
[1738328866838,19.35376201,3353.9,3353.8,7.48655224]
[1738328867195,19.35376201,3353.9,3353.8,7.01585021]
[1738328867399,20.13316201,3353.9,3353.8,5.57003641]
[1738328867821,20.68316201,3353.9,3353.8,3.92862804]
[1738328868023,20.68316201,3353.9,3353.8,1.85880304]
[1738328868227,0.565,3353.8,3352.7,0.7907]
[1738328868428,0.015,3353.6,3352.7,0.7907]
[1738328868808,0.015,3353.4,3352.7,0.7907]
[1738328869325,2.71400367,3353.1,3351.6,0.8006]
[1738328869504,0.0075,3352.9,3352.0,0.8006]
[1738328869840,0.202,3352.8,3352.0,0.8006]
[1738328870217,0.58553612,3352.6,3352.0,0.8006]
[1738328872831,0.202,3352.8,3352.0,0.8006]
[1738328873007,14.402,3353.0,3352.0,0.8006]
[1738328873212,0.0075,3352.9,3352.1,0.08254473]
[1738328873540,0.58905662,3352.7,3351.7,0.7763]
[1738328873727,15.8422,3353.0,3351.8,0.80613005]
[1738328873728,14.402,3353.0,3351.8,0.80613005]
[1738328874048,14.402,3353.0,3352.3,0.8076]
[1738328874234,8.85,3352.9,3352.3,0.8076]
[1738328874932,0.59400918,3352.8,3352.3,0.8076]
[1738328876243,0.0075,3352.7,3352.3,0.8076]
[1738328877258,14.2,3352.6,3352.3,0.8076]
[1738328879368,14.2,3352.6,3352.5,0.7619]
[1738328879531,14.2,3352.6,3352.5,0.84495868]
[1738328880359,14.2,3352.6,3352.5,3.84495868]
[1738328880707,14.2,3352.6,3352.5,0.84495868]
[1738328882782,0.7852,3354.1,3352.6,0.7666]
[1738328882783,14.2,3353.5,3352.6,0.7666]
[1738328883066,14.2,3353.5,3352.8,0.7666]
[1738328883426,14.2,3353.5,3352.9,0.0298216]
[1738328883626,14.2,3353.5,3353.0,0.776]
[1738328883833,8.85,3353.4,3353.0,0.776]
[1738328884029,8.85,3353.4,3353.1,0.08284783]
[1738328884363,8.85,3353.4,3353.0,0.776]
[1738328884733,8.85,3353.4,3353.2,0.08271608]
[1738328884943,8.85,3353.4,3353.0,0.776]
[1738328884944,10.27,3353.4,3353.0,0.776]
[1738328886474,8.85,3353.4,3353.0,0.776]
[1738328887883,8.85,3353.4,3353.1,0.08271608]
[1738328889135,5.35,3353.3,3353.1,0.08271608]
[1738328890036,8.85,3353.2,3353.1,0.08271608]
[1738328891730,8.85,3353.2,3353.1,0.90081608]
[1738328891938,8.85,3353.2,3353.1,1.29387986]
[1738328892248,14.2,3354.4,3353.2,0.7834]
[1738328892426,8.85,3354.3,3353.5,0.7834]
[1738328892633,8.85,3354.3,3353.7,0.8176]
[1738328893166,0.0075,3354.1,3353.8,0.08213634]
[1738328893463,16.49321653,3354.2,3353.1,0.8176]
[1738328893846,0.202,3354.1,3353.2,0.07620943]
[1738328894236,0.202,3354.1,3353.1,0.8176]
[1738328894463,0.0075,3353.8,3353.2,0.07620943]
[1738328894669,0.35381037,3353.7,3353.2,0.07620943]
[1738328894833,14.2,3353.6,3352.9,0.7506]
[1738328895278,14.2,3353.6,3353.0,0.07641974]
[1738328895649,14.80544235,3353.6,3353.0,0.07641974]
[1738328895833,16.42472762,3353.6,3353.0,0.07641974]
[1738328896283,16.42472762,3353.6,3352.9,0.7506]
[1738328896433,15.81928527,3353.6,3352.9,0.7506]
[1738328897647,15.81928527,3353.6,3352.5,0.7716]
[1738328897648,9.6343,3353.5,3352.5,0.7716]
[1738328897837,16.22636147,3353.4,3352.5,0.7716]
[1738328898583,16.22636147,3353.4,3352.6,0.07369047]
[1738328899237,8.8575,3353.3,3352.6,0.07369047]
[1738328899580,8.8575,3353.3,3352.5,0.7716]
[1738328899775,8.8575,3353.3,3352.6,0.07369047]
[1738328899988,1.70181615,3353.2,3352.6,0.07369047]
[1738328900186,1.70181615,3353.2,3352.5,0.7716]
[1738328900483,1.70181615,3353.2,3352.6,0.07369047]
[1738328900943,1.70181615,3353.2,3352.5,0.7716]
[1738328901274,1.70181615,3353.2,3352.6,0.07369047]
[1738328901438,1.59018162,3353.1,3352.6,0.07369047]
[1738328901638,1.59018162,3353.1,3352.5,0.7716]
[1738328901880,1.59018162,3353.1,3352.6,0.0738614]
[1738328902378,1.59018162,3353.1,3352.5,0.7716]
[1738328902745,1.59018162,3353.1,3352.6,0.0738614]
[1738328903143,1.59018162,3353.1,3352.5,0.7716]
[1738328903460,1.59018162,3353.1,3352.6,0.07385701]
[1738328903948,8.85,3353.0,3352.5,0.7716]
[1738328904345,8.85,3353.0,3352.6,0.07385701]
[1738328904680,8.85,3353.0,3352.5,0.7716]
[1738328904881,8.85,3353.0,3352.5,1.15221808]
[1738328905068,8.85,3353.0,3352.6,0.07385701]
[1738328907456,0.15826446,3354.2,3352.6,0.07385701]
[1738328907457,8.85,3353.6,3352.9,1.3435]
[1738328907800,3.0567,3355.7,3352.7,5.44283088]
[1738328907801,8.85,3354.3,3353.8,0.55]
[1738328907959,8.85,3355.0,3354.2,3.7935]
[1738328908299,8.85,3355.0,3354.5,0.8289]
[1738328908459,8.85,3355.0,3354.7,2.70650367]
[1738328908656,8.85,3355.0,3354.8,0.07362479]
[1738328908975,8.85,3355.7,3354.9,0.28099342]
[1738328909176,8.85,3355.7,3355.0,3.56520526]
[1738328909386,8.85,3355.7,3355.1,3.0]
[1738328909559,8.85,3355.7,3355.2,0.0297999]
[1738328909955,8.85,3355.7,3355.3,0.07360727]
[1738328910160,8.85,3355.7,3355.3,0.73748835]
[1738328910358,8.85,3355.7,3355.3,0.66388108]
[1738328910556,8.85,3355.7,3355.4,0.07360727]
[1738328910799,8.85,3355.7,3355.0,0.85870129]
[1738328910986,8.85,3355.7,3355.1,0.07360727]
[1738328911561,8.85,3355.7,3355.2,0.02980125]
[1738328911761,8.85,3355.7,3355.1,3.07360727]
[1738328911980,8.85,3355.7,3355.2,0.76260771]
[1738328912194,8.85,3355.7,3355.2,0.07360727]
[1738328912880,5.35,3356.0,3355.0,0.8289]